Cogmind - Beta 11 @@@ ROGUE MODE // 2022.04.14 @ 14:23:35 Player: DaddyWalrus Result: Destroyed by P-70 Sage with Tesla Rifle Performance ------------- Evolutions (5) 2500 Regions Visited (15) 3000 Robots Destroyed (195) 975 Value Destroyed (5639) 5639 Prototype IDs (37) 740 Alien Tech Used (0) 0 Bonus (1641) 1641 TOTAL SCORE: 14495 Bonus ------- High Alert Combat Kills 266 Follower Combat Kills 74 Met Data Miner 300 Met Imprinter 300 Destroyed Z-Imprinter 1000 Friendly Fire -299 Cogmind --------- Core Integrity 0/1000 Matter 242/300 Energy 70/315 System Corruption 20% Temperature Cool (0) Movement Walking (120) Location -5/Factory Parts ------- > --- POWER (2) -------- Neutrino Core > --- PROPULSION (5) --- Carbon-fiber Leg Flexi-carbon Leg Wheel > --- UTILITY (8) ------ Experimental Heat Sink Improved Signal Interpreter Improved System Shield > --- WEAPON (2) ------- CR-A16's Pointy Stick > --- INVENTORY (5) ---- Zionite Metafield Generator Deep Network Scanner Ghost Barrier Peak State ------------ > --- POWER ------------ Zionite Light DM Reactor Zionite Light DM Reactor > --- PROPULSION ------- Improved Gravmag System Zionite Glidesys I VTOL Module Cooled Cesium-ion Thruster > --- UTILITY ---------- Cryofiber Web Experimental Heat Sink Small Storage Unit Zionite Biocell Improved Signal Interpreter Advanced Terrain Scanner Zionite Weapon Casing > --- WEAPON ----------- Zionite Phaser-S Zionite Phaser-S > --- INVENTORY -------- Cooled Cesium-ion Thruster Experimental Heat Sink Large Storage Unit Zionite Metafield Generator Improved Trap Scanner RU-N14's Throwing Claymores CR-A16's Pointy Stick Heavy Pick [Rating: 84] Favorites ----------- Power Light Nuclear Core Engine Heavy Ion Engine Power Core Light Nuclear Core Reactor Zionite Light DM Reactor Propulsion Improved Treads Treads Improved Treads Leg Carbon-fiber Leg Wheel Armored Wheel Hover Unit Gravmag System Flight Unit Improved VTOL Module Utility Hacking Suite Device Improved Sensor Array Storage High-capacity Storage Unit Processor Improved Signal Interpreter Hackware Hacking Suite Protection Hardened Light Armor Plating Weapon Heavy Assault Rifle Energy Gun Heavy Particle Gun Ballistic Gun Heavy Assault Rifle Launcher Mini Grenade Launcher Special Weapon RU-N14's Throwing Claymores Impact Weapon Impact Mace Slashing Weapon Katana Piercing Weapon Heavy Pick Build | -11 -10 -9 -8 -7 -7 -7 -7 -7 -6 -6 -6 -6 -6 -5 -5 ------- Run | Scr Mat Mat Mat Fac Low Low Zio Dee Pro Fac Low Low Dat Pro Fac Slots Evolved 10 | . . 2 2 2 . . . . . 2 . . . . 2 Power 1 | . . . . . . . . . . 1 . . . . . Propulsion 3 | . . 1 . 1 . . . . . . . . . . 1 Utility 6 | . . 1 2 1 . . . . . 1 . . . . 1 Weapon . | . . . . . . . . . . . . . . . . Parts Attached 317 | 7 28 52 25 23 1 . 6 36 4 81 7 1 5 11 30 Power 37 | 1 4 6 . 1 . . . 7 . 14 . . . . 4 Engine 19 | 1 4 6 . . . . . 1 . 6 . . . . 1 Core 14 | . . . . 1 . . . 3 . 7 . . . . 3 Reactor 4 | . . . . . . . . 3 . 1 . . . . . Propulsion 85 | 2 13 16 6 5 . . . 7 . 24 . . 1 2 9 Treads 26 | . 9 9 5 . . . . . . . . . . . 3 Leg 8 | . . . . . . . . 1 . 4 . . . . 3 Wheel 20 | 2 4 6 . . . . . . . 7 . . . . 1 Hover 18 | . . . . . . . . 4 . 9 . . 1 2 2 Flight 13 | . . 1 1 5 . . . 2 . 4 . . . . . Utility 89 | 2 3 6 9 9 . . 2 9 1 29 6 1 1 8 3 Device 37 | 1 . . 3 3 . . . 3 1 14 4 1 . 5 2 Storage 10 | 1 2 1 . 2 . . . 1 . 3 . . . . . Processor 8 | . . 1 1 1 . . 1 . . 3 1 . . . . Hackware 9 | . . 1 2 3 . . . . . 3 . . . . . Protection 25 | . 1 3 3 . . . 1 5 . 6 1 . 1 3 1 Artifact . | . . . . . . . . . . . . . . . . Weapon 106 | 2 8 24 10 8 1 . 4 13 3 14 1 . 3 1 14 Energy Gun 18 | 1 . . 4 . . . . 5 . 4 . . 1 . 3 Energy Cannon . | . . . . . . . . . . . . . . . . Ballistic Gun 35 | 1 6 16 3 1 . . . . . . . . . . 8 Ballistic Cannon . | . . . . . . . . . . . . . . . . Launcher 12 | . 2 4 2 1 1 . 1 1 . . . . . . . Special Weapon 11 | . . . . . . . 1 4 1 3 1 . 1 . . Impact Weapon 4 | . . 1 . 2 . . 1 . . . . . . . . Slashing Weapon 12 | . . 3 1 4 . . . 1 . 2 . . . 1 . Piercing Weapon 14 | . . . . . . . 1 2 2 5 . . 1 . 3 Special Melee Weapon . | . . . . . . . . . . . . . . . . Unidentified Prototypes 23 | . . 4 3 1 . . 1 12 . 2 . . . . . Corrupted Parts 4 | . . . . . . . . . . 1 . . . . 3 System Corruption 13 | . . . . . . . . . . 3 . . . . 10 Parts Lost 61 | . 1 1 6 . . . . 3 5 14 . . 1 7 23 Power 11 | . 1 . . . . . . 1 . 4 . . . 1 4 Propulsion 22 | . . . 1 . . . . 1 2 7 . . 1 3 7 Utility 17 | . . . 4 . . . . 1 2 3 . . . 2 5 Weapon 11 | . . 1 1 . . . . . 1 . . . . 1 7 Highest Loss Streak 17 | . 1 1 2 . . . . 3 5 7 . . 1 4 17 To Critical Strikes . | . . . . . . . . . . . . . . . . Average Slot Usage (%) 95 | . 99 100 98 94 100 100 100 99 92 90 99 100 95 95 55 Engine 6 | . 13 11 9 1 . . . . . 5 . . . . . Core 3 | . . . . 5 7 7 7 3 . 4 13 13 13 12 2 Treads 10 | . 22 20 22 4 . . . . . . . . . . 4 Wheel 5 | . 5 12 4 . . . . . . 8 . . . . . Hover 6 | . . . . . . . . 18 26 8 26 26 24 24 7 Flight 4 | . . . . 24 30 30 30 11 . . . . . . . Device 8 | . 13 . 9 9 7 7 7 9 13 14 5 6 2 6 2 Storage 10 | . 14 11 9 7 7 7 7 13 15 12 6 6 6 6 4 Processor 4 | . . . 3 7 7 7 10 8 7 9 6 6 6 6 5 Hackware 9 | . . 11 12 15 23 23 16 1 . 4 20 20 20 18 10 Protection 6 | . . 11 9 1 . . 2 10 5 3 6 6 9 5 2 Energy Gun 2 | . . . 7 1 . . . 4 5 . . . . 4 . Ballistic Gun 8 | . 27 20 9 . . . . . . . . . . . 5 Slashing Weapon 1 | . . . . 11 7 7 1 . . 3 . . . . 1 Piercing Weapon 1 | . . . . . . . 4 . 1 3 6 6 6 5 1 Naked Turns . | . . . . . . . . . . . . . . . . Heaviest Build 61 | 14 32 61 61 59 16 14 19 35 32 53 39 39 39 36 28 Greatest Support 93 | 20 46 69 63 62 20 20 20 50 50 50 39 39 42 42 93 Greatest Overweight (x) 6 | . 2 5 4 . . . . 1 . 6 . . 1 1 6 Average Overweight (x) . | . . 3 1 . . . . . . . . . . . . Largest Inventory Capacity 20 | 8 15 20 20 20 8 8 8 8 8 15 10 10 10 10 10 Average Capacity 13 | 7 11 18 20 11 8 8 8 8 8 12 10 10 10 10 9 Most Carried 20 | 6 15 20 20 20 8 8 8 8 8 15 10 10 10 10 10 Average Carried 13 | 4 9 18 19 11 8 8 7 7 7 12 9 10 9 9 8 Final Capacity 20 | 8 15 20 20 8 8 8 8 8 8 10 10 10 10 10 5 Final Carried 20 | 6 15 20 20 8 8 8 8 8 8 10 10 10 10 8 3 Class Distribution -------------------- 36% | Scavenger-Mutant 32% | Mutant 17% | Hacker-Mutant 10% | Hacker-Sprinter Dominant Class ---------------- Mutant | -10/Materials Mutant | -9/Materials Scavenger-Mutant | -8/Materials Hacker-Sprinter | -7/Factory Hacker-Sprinter | -7/Lower Caves Hacker-Sprinter | -7/Lower Caves Hacker-Sprinter | -7/Zion Scavenger-Mutant | -7/Deep Caves Scavenger-Mutant | -6/Proximity Caves Scavenger-Mutant | -6/Factory Hacker-Mutant | -6/Lower Caves Hacker-Mutant | -6/Lower Caves Hacker-Mutant | -6/Data Miner Hacker-Mutant | -5/Proximity Caves Hacker-Mutant | -5/Factory Resources | -11 -10 -9 -8 -7 -7 -7 -7 -7 -6 -6 -6 -6 -6 -5 -5 ----------- Run | Scr Mat Mat Mat Fac Low Low Zio Dee Pro Fac Low Low Dat Pro Fac Matter Collected 5469 | 275 610 1722 631 105 165 21 59 350 30 737 81 29 29 95 530 Remotely . | . . . . . . . . . . . . . . . . Salvage Created 8540 | 92 553 2051 1353 124 99 . . 325 171 1463 . 60 121 575 1553 Parts 456 | 3 31 147 82 15 1 . . 23 13 68 . . 5 6 62 Haulers Intercepted 5 | . . 1 3 . . . . . . 1 . . . . . Recyclers Shooed 7 | 1 . 1 1 . . . . . . 2 . . . . 2 Parts Field Recycled . | . . . . . . . . . . . . . . . . Retrieved Matter . | . . . . . . . . . . . . . . . . Parts Self-Destructed 17 | . . . . . 5 . . . 11 . . . . 1 . Prevented 3 | . . . . . . . . . 3 . . . . . . Kills | -11 -10 -9 -8 -7 -7 -7 -7 -7 -6 -6 -6 -6 -6 -5 -5 ------- Run | Scr Mat Mat Mat Fac Low Low Zio Dee Pro Fac Low Low Dat Pro Fac Combat Hostiles Destroyed 132 | . 12 42 20 . . . . 9 8 19 . . 4 1 17 Melee 13 | . . . . . . . . 1 . 8 . . . . 4 Guns 80 | . 8 36 17 . . . . 1 3 2 . . . 1 12 Cannons 7 | . . . . . . . . 2 3 . . . 2 . . AOE 32 | . 4 6 3 . . . . 5 2 9 . . 2 . 1 Classes Destroyed 16 | 2 6 3 1 . . . . 2 . 1 . . . . 1 Worker 15 | . 1 3 2 3 . . . . . 2 . . . . 4 Builder 4 | . 1 2 . . . . . . . 1 . . . . . Tunneler 1 | 1 . . . . . . . . . . . . . . . Hauler 5 | . . 1 3 . . . . . . 1 . . . . . Recycler 16 | 1 2 2 3 . . . . . . 4 . . . . 4 Operator 15 | . 2 6 3 3 . . . . . . . . . . 1 Watcher 9 | . 1 4 2 1 . . . . . 1 . . . . . Swarmer 39 | . 5 10 4 . . . . . 7 7 . . . 1 5 Grunt 53 | . 7 20 12 . . . . . . 7 . . . . 7 Brawler 1 | . . . 1 . . . . . . . . . . . . Duelist 2 | . . 2 . . . . . . . . . . . . . Sentry 16 | . . 10 3 . . . . . 1 1 . . . . 1 Hunter 2 | . . . . . . . . . . . . . . . 2 Programmer 6 | . . . . . . . . . . 4 . . . . 2 Enhanced Grunt 4 | . . . . . . . . . . . . . 4 . . Z-Technician 4 | . . . . . . . . 4 . . . . . . . Z-Light 5 | . . . . . . . . 5 . . . . . . . Assembled 3 | . . . . . . . . 3 . . . . . . . Best Kill Streak 9 | 2 4 9 6 2 . . . 5 6 4 . . 5 1 6 Combat Bots Only 6 | . 3 5 3 . . . . 5 6 4 . . 4 1 5 Max Kills in Single Turn 4 | 1 2 2 2 1 . . . 2 2 4 . . 2 1 2 Gunslinging . | . . . . . . . . . . . . . . . . Exploded 4 | . 2 1 2 . . . . 2 1 4 . . 1 . 1 Melee 1 | . . . . . . . . 1 . 1 . . . . 1 Uniques/NPCs Destroyed 2 | . . . . . . . . 1 . . . . 1 . . Z-Imprinter (-7/Deep Caves) Data Miner (-6/Data Miner) Combat | -11 -10 -9 -8 -7 -7 -7 -7 -7 -6 -6 -6 -6 -6 -5 -5 -------- Run | Scr Mat Mat Mat Fac Low Low Zio Dee Pro Fac Low Low Dat Pro Fac Damage Taken 11257 | . 613 1690 1106 17 . 44 . 769 336 2093 . . 129 620 3840 Core 2453 | . 118 183 165 . . 10 . 202 83 555 . . 35 82 1020 Absorbed by Shields . | . . . . . . . . . . . . . . . . Reduced by Siege Mode 87 | . . . . . . . . . . . . . . . 87 Redirected to Shielding 297 | . . . . . . . . 66 . 188 . . 15 28 . Regen/Repaired (Parts) 11 | . . . . . . . . . . 11 . . . . . Core Remaining (%) 58 | 100 52 54 70 . . . . . 57 . . . . 20 . Volleys Fired 451 | 5 60 159 102 . . 2 . 29 8 22 . . 7 5 52 Largest 2 | 2 2 2 2 . . 1 . 2 2 2 . . 1 1 2 Hottest 120 | 60 60 50 88 . . 30 . 73 60 120 . . . 60 93 Shots Fired 826 | 10 120 304 193 . . 2 . 38 14 32 . . 7 5 101 Gun 779 | 10 114 294 192 . . . . 26 8 29 . . . 5 101 Cannon . | . . . . . . . . . . . . . . . . Launcher 19 | . 6 10 1 . . 2 . . . . . . . . . Special 28 | . . . . . . . . 12 6 3 . . 7 . . Kinetic 627 | 5 112 294 124 . . . . . . . . . . . 92 Thermal 64 | 5 2 . 56 . . . . 1 . . . . . . . Explosive 47 | . 6 10 1 . . 2 . 12 6 3 . . 7 . . Electromagnetic 26 | . . . 12 . . . . . . . . . . 5 9 Phasic 62 | . . . . . . . . 25 8 29 . . . . . Robot Hit Streak 25 | 3 9 15 25 . . . . 6 3 5 . . 6 7 23 Robot Miss Streak 9 | 1 4 5 5 . . . . 3 1 9 . . . 2 5 Penetration Max 1 | . . . . . . . . . . . . . . . 1 Secondary Targets 9 | . 1 4 3 . . . . . . . . . . . 1 Max Gunslinging Chain 1 | . 1 1 1 . . . . . . . . . . . 1 Shots Hit Robots 612 | 6 67 196 129 7 3 . . 22 8 50 . 1 7 19 97 Core Hits 318 | 3 34 87 57 6 2 . . 19 8 30 . 1 15 8 48 Critical Kills 4 | . . 1 1 . . . . . . . . . . . 2 Critical Parts Destroyed 5 | . . 2 1 . . . . . . . . . . . 2 Critical Strikes 21 | . . 3 2 . . . . 2 1 3 . . . 3 7 Destroy 9 | . . 3 2 . . . . . . . . . . . 4 Corrupt 1 | . . . . . . . . . . . . . . . 1 Sever 5 | . . . . . . . . . 1 2 . . . 1 1 Impale 5 | . . . . . . . . 1 . 1 . . . 2 1 Intensify 1 | . . . . . . . . 1 . . . . . . . Melee Attacks 248 | . . 9 2 28 7 2 11 9 2 90 2 1 4 26 55 Impact 15 | . . 4 . 1 1 . 9 . . . . . . . . Slashing 103 | . . 5 2 27 6 2 . 2 . 39 . . . 5 15 Piercing 130 | . . . . . . . 2 7 2 51 2 1 4 21 40 Sneak Attacks 21 | . . 2 . 6 . . . . . 10 . . 1 . 2 Combat Hostiles . | . . . . . . . . . . . . . . . . Follow-up Attacks 12 | . . . . . . . . 2 . . . . . . 10 Damage Inflicted 19710 | 65 1136 3758 2351 493 233 . . 1573 865 3443 . 59 1853 1059 2822 Guns 9332 | 65 848 3103 2149 . . . . 429 165 462 . . . 46 2065 Cannons . | . . . . . . . . . . . . . . . . Explosions 4719 | . 286 515 202 . . . . 809 427 977 . . 1503 . . Melee 4902 | . . 132 . 493 233 . . 177 82 1885 . 59 73 1013 755 Ramming 12 | . 2 8 . . . . . . . . . . . . 2 Kinetic 7161 | 10 848 3103 1300 . . . . . . . . . . . 1900 Thermal 856 | 55 . . 801 . . . . . . . . . . . . Explosive 4590 | . 286 515 73 . . . . 809 427 977 . . 1503 . . Electromagnetic 388 | . . . 177 . . . . . . . . . . 46 165 Impact . | . . . . . . . . . . . . . . . . Slashing 3258 | . . 132 . 493 233 . . 189 191 1371 . . 277 114 258 Piercing 2389 | . . . . . . . . 146 82 633 . 59 73 899 497 Phasic 1056 | . . . . . . . . 429 165 462 . . . . . Highest Corruption 20 | . . 5 1 . . . . . . 3 1 1 1 2 20 Average Corruption 1 | . . 1 1 . . . . . . 1 1 1 1 1 5 Corruption Purged 5 | . . . . . . . . . . 5 . . . . . Corruption Blocked . | . . . . . . . . . . . . . . . . Effects 57 | . . 37 6 . . . . . . 3 1 2 1 2 5 Message Errors 19 | . . 12 2 . . . . . . 1 . 1 . . 3 Matter Fused 15 | . . 10 2 . . . . . . 1 . 1 1 . . Heat Flow Errors 3 | . . 1 . . . . . . . . . . . 1 1 Energy Discharges 5 | . . 3 1 . . . . . . . . . . 1 . Parts Rejected 1 | . . 1 . . . . . . . . . . . . . Data Loss (minor) 9 | . . 6 1 . . . . . . 1 1 . . . . Data Loss (major) 2 | . . 2 . . . . . . . . . . . . . Misfires 1 | . . 1 . . . . . . . . . . . . . Alerts 1 | . . . . . . . . . . . . . . . 1 Weapon Failures 1 | . . 1 . . . . . . . . . . . . . Overload Shots . | . . . . . . . . . . . . . . . . Overflow Damage 1087 | . . 50 11 42 42 . . 49 47 341 . . 16 436 53 Projectiles . | . . . . . . . . . . . . . . . . Explosions 160 | . . 26 11 . . . . 33 47 27 . . 16 . . Melee 927 | . . 24 . 42 42 . . 16 . 314 . . . 436 53 Knockbacks 1 | . . 1 . . . . . . . . . . . . . Impact 1 | . . 1 . . . . . . . . . . . . . Kinetic . | . . . . . . . . . . . . . . . . Secondary . | . . . . . . . . . . . . . . . . Self-Inflicted Damage 69 | . . 4 34 . . 31 . . . . . . . . . Shots 3 | . . . 1 . . 2 . . . . . . . . . Rammed 3 | . 1 1 . . . . . . . . . . . . 1 Targets Rammed 3 | . 1 1 . . . . . . . . . . . . 1 Kicked . | . . . . . . . . . . . . . . . . Crushed . | . . . . . . . . . . . . . . . . Highest Temperature 587 | 20 5 145 104 . . . . 16 . 587 . . . 109 154 Average Temperature 49 | 20 2 24 37 . . . . 7 . 179 . . . 29 88 Received Heat Transfer 3029 | . 243 540 693 . . 9 . 198 24 629 . . . 144 549 Effects 3 | . . . . . . . . . . 3 . . . . . Energy Bleed 1 | . . . . . . . . . . 1 . . . . . Short Circuit 1 | . . . . . . . . . . 1 . . . . . Damage (core) 1 | . . . . . . . . . . 1 . . . . . Siege Activations 3 | . . . . . . . . . . . . . . . 3 Total Turns 80 | . . . . . . . . . . . . . . . 80 Longest Duration 48 | . . . . . . . . . . . . . . . 48 Robots Corrupted . | . . . . . . . . . . . . . . . . Combat Hostiles . | . . . . . . . . . . . . . . . . Parts Fried 2 | . . . 1 . . . . . . . . . . . 1 Impact Corruptions . | . . . . . . . . . . . . . . . . Robots Melted . | . . . . . . . . . . . . . . . . Combat Hostiles . | . . . . . . . . . . . . . . . . Parts Melted . | . . . . . . . . . . . . . . . . Heat Transferred 1644 | 125 . . 1519 . . . . . . . . . . . . Parts Sabotaged . | . . . . . . . . . . . . . . . . Parts Stolen . | . . . . . . . . . . . . . . . . Parts Stripped . | . . . . . . . . . . . . . . . . Power Chain Reactions 1 | . . . 1 . . . . . . . . . . . . Missiles Intercepted . | . . . . . . . . . . . . . . . . Alert | -11 -10 -9 -8 -7 -7 -7 -7 -7 -6 -6 -6 -6 -6 -5 -5 ------- Run | Scr Mat Mat Mat Fac Low Low Zio Dee Pro Fac Low Low Dat Pro Fac Peak Influence 1028 | 10 289 1028 599 159 . . . . . 227 . . . . 428 Initial 434 | . 6 17 434 42 . . . . . 91 . . . . 69 Average 235 | 2 137 459 211 94 . . . . . 74 . . . . 246 Maximum Alert Level 3 | . 1 3 2 . . . . . . 1 . . . . 2 Low Security (%) 66 | 100 78 34 65 100 . . . . . 99 . . . . 30 Level 1 15 | . 21 22 7 . . . . . . . . . . . 64 Level 2 9 | . . 12 26 . . . . . . . . . . . 5 Level 3 8 | . . 30 . . . . . . . . . . . . . Level 4 . | . . . . . . . . . . . . . . . . Level 5 . | . . . . . . . . . . . . . . . . High Security . | . . . . . . . . . . . . . . . . Max Security . | . . . . . . . . . . . . . . . . Squads Dispatched 24 | . 4 7 3 . . . . . . 5 . . . 1 4 Investigation 5 | . 2 . 2 . . . . . . 1 . . . . . Extermination 4 | . . . . . . . . . . 3 . . . . 1 Reinforcement 13 | . 2 6 1 . . . . . . 1 . . . . 3 Assault 2 | . . 1 . . . . . . . . . . . 1 . Garrison . | . . . . . . . . . . . . . . . . Intercept . | . . . . . . . . . . . . . . . . Searches Triggered 1 | . . . . . . . . . . . . . . . 1 Construction Impeded 1 | . . . . . . . . . . . . . . . 1 Haulers Reinforced 1 | . . . . . . . . . . . . . . . 1 Active Scanning Responses . | . . . . . . . . . . . . . . . . Cargo Convoy Interrupts . | . . . . . . . . . . . . . . . . Stealth | -11 -10 -9 -8 -7 -7 -7 -7 -7 -6 -6 -6 -6 -6 -5 -5 --------- Run | Scr Mat Mat Mat Fac Low Low Zio Dee Pro Fac Low Low Dat Pro Fac Distress Signals 14 | . 2 5 3 . . . . . . 1 . . . . 3 Communications Jammed . | . . . . . . . . . . . . . . . . Distress Signals . | . . . . . . . . . . . . . . . . Times Spotted 265 | . 29 79 45 5 . 4 . 7 8 28 . . 4 15 41 Peak Tracking Total 11 | . 5 6 4 1 . 4 . 3 3 4 . . 4 11 8 Tactical Retreats 18 | . . 2 1 . . 2 . . 1 2 . . . 4 6 Traps | -11 -10 -9 -8 -7 -7 -7 -7 -7 -6 -6 -6 -6 -6 -5 -5 ------- Run | Scr Mat Mat Mat Fac Low Low Zio Dee Pro Fac Low Low Dat Pro Fac Traps Triggered 13 | . 7 6 . . . . . . . . . . . . . Indirectly . | . . . . . . . . . . . . . . . . Trap Hack Attempts . | . . . . . . . . . . . . . . . . Triggered . | . . . . . . . . . . . . . . . . Disarmed . | . . . . . . . . . . . . . . . . Reprogrammed . | . . . . . . . . . . . . . . . . Reused . | . . . . . . . . . . . . . . . . Traps Extracted . | . . . . . . . . . . . . . . . . Installed . | . . . . . . . . . . . . . . . . Triggered 1 | . . . . . . . . . 1 . . . . . . Machines | -11 -10 -9 -8 -7 -7 -7 -7 -7 -6 -6 -6 -6 -6 -5 -5 ---------- Run | Scr Mat Mat Mat Fac Low Low Zio Dee Pro Fac Low Low Dat Pro Fac Machines Disabled 7 | . 3 . 1 . 1 . . . . 1 . . . . 1 Max in Single Turn 2 | . 2 . 1 . 1 . . . . 1 . . . . 1 Machines Sabotaged . | . . . . . . . . . . . . . . . . Garrisons Compromised . | . . . . . . . . . . . . . . . . Overloaded Fab Kills . | . . . . . . . . . . . . . . . . Hacking | -11 -10 -9 -8 -7 -7 -7 -7 -7 -6 -6 -6 -6 -6 -5 -5 --------- Run | Scr Mat Mat Mat Fac Low Low Zio Dee Pro Fac Low Low Dat Pro Fac Machines Accessed 32 | . 1 7 7 5 1 . . . . 6 . 1 4 . . Terminals 18 | . 1 5 7 4 . . . . . 1 . . . . . Fabricators . | . . . . . . . . . . . . . . . . Repair Stations 2 | . . . . . . . . . . 2 . . . . . Recycling Units 5 | . . 2 . 1 . . . . . 2 . . . . . Scanalyzers 1 | . . . . . . . . . . 1 . . . . . Garrison Access . | . . . . . . . . . . . . . . . . Total Hacks 114 | . 3 22 22 18 1 . . . . 15 . 1 32 . . Successful 83 | . 2 13 17 10 1 . . . . 7 . 1 32 . . Failed 31 | . 1 9 5 8 . . . . . 8 . . . . . Catastrophic 3 | . . 1 . 1 . . . . . 1 . . . . . Database Lockouts . | . . . . . . . . . . . . . . . . Manual 52 | . 3 17 18 11 . . . . . 3 . . . . . Terminals 63 | . 3 18 22 17 . . . . . 3 . . . . . Fabricators . | . . . . . . . . . . . . . . . . Repair Stations 5 | . . . . . . . . . . 5 . . . . . Recycling Units 9 | . . 4 . 1 . . . . . 4 . . . . . Scanalyzers 3 | . . . . . . . . . . 3 . . . . . Garrison Access . | . . . . . . . . . . . . . . . . Terminal Hacks 51 | . 1 4 9 3 1 . . . . . . 1 32 . . Record 11 | . . . . . . . . . . . . . 11 . . Part Schematic 13 | . . 1 . . . . . . . . . . 12 . . Robot Schematic 6 | . . . . . . . . . . . . . 6 . . Robot Analysis 1 | . . . . 1 . . . . . . . . . . . Prototype ID Bank 5 | . . . 2 . . . . . . . . . 3 . . Open Door 2 | . . . . . 1 . . . . . . 1 . . . Branch Access Points 1 | . . . . 1 . . . . . . . . . . . Terminal Index 4 | . 1 1 1 1 . . . . . . . . . . . Scanalyzer Index 1 | . . 1 . . . . . . . . . . . . . Unreport Threat 3 | . . . 3 . . . . . . . . . . . . Transport Status 1 | . . . 1 . . . . . . . . . . . . Recall Investigation 1 | . . . 1 . . . . . . . . . . . . Hauler Manifests 2 | . . 1 1 . . . . . . . . . . . . Fabricator Hacks . | . . . . . . . . . . . . . . . . Repair Station Hacks 3 | . . . . . . . . . . 3 . . . . . Scan Component 2 | . . . . . . . . . . 2 . . . . . Repair 1 | . . . . . . . . . . 1 . . . . . Recycling Unit Hacks 4 | . . 3 . 1 . . . . . . . . . . . Report Inventory 3 | . . 2 . 1 . . . . . . . . . . . Retrieve Matter 1 | . . 1 . . . . . . . . . . . . . Scanalyzer 3 | . . . . . . . . . . 3 . . . . . Insert Component 2 | . . . . . . . . . . 2 . . . . . Analyze 1 | . . . . . . . . . . 1 . . . . . Garrison Access Hacks . | . . . . . . . . . . . . . . . . Unauthorized Hacks 22 | . 1 6 8 6 . . . . . 1 . . . . . Terminals 22 | . 1 6 8 6 . . . . . 1 . . . . . Track 1 | . . 1 . . . . . . . . . . . . . Assimilate 3 | . . . . 3 . . . . . . . . . . . Botnet 15 | . 1 4 7 2 . . . . . 1 . . . . . Operators 3 | . . 1 1 1 . . . . . . . . . . . Fabricators . | . . . . . . . . . . . . . . . . Repair Stations . | . . . . . . . . . . . . . . . . Recycling Units . | . . . . . . . . . . . . . . . . Scanalyzers . | . . . . . . . . . . . . . . . . Garrison Access . | . . . . . . . . . . . . . . . . Data Cores Recovered 1 | . . . 1 . . . . . . . . . . . . Used . | . . . . . . . . . . . . . . . . Hacking Detections 22 | . 1 7 7 3 . . . . . 4 . . . . . Full Trace Events 3 | . . . 2 . . . . . . 1 . . . . . Feedback Events . | . . . . . . . . . . . . . . . . Feedback Blocked . | . . . . . . . . . . . . . . . . Robot Schematics Acquired 9 | . . . . . . . 3 . . . . . 6 . . Robots Built . | . . . . . . . . . . . . . . . . Authchips . | . . . . . . . . . . . . . . . . Time . | . . . . . . . . . . . . . . . . Total Robot Build Rating . | . . . . . . . . . . . . . . . . Part Schematics Acquired 29 | . . 1 . . . . 15 . . 1 . . 12 . . Parts Built . | . . . . . . . . . . . . . . . . Authchips . | . . . . . . . . . . . . . . . . Time . | . . . . . . . . . . . . . . . . Total Part Build Rating . | . . . . . . . . . . . . . . . . Parts Repaired 1 | . . . . . . . . . . 1 . . . . . Time 61 | . . . . . . . . . . 61 . . . . . Parts Recycled . | . . . . . . . . . . . . . . . . Recycled Matter . | . . . . . . . . . . . . . . . . Retrieved Matter 59 | . . 59 . . . . . . . . . . . . . Retrieved Components . | . . . . . . . . . . . . . . . . Parts Scanalyzed 1 | . . . . . . . . . . 1 . . . . . Part Schematics Acquired 1 | . . . . . . . . . . 1 . . . . . Parts Damaged 1 | . . . . . . . . . . 1 . . . . . Bothacking | -11 -10 -9 -8 -7 -7 -7 -7 -7 -6 -6 -6 -6 -6 -5 -5 ------------ Run | Scr Mat Mat Mat Fac Low Low Zio Dee Pro Fac Low Low Dat Pro Fac Used RIF Installer . | . . . . . . . . . . . . . . . . Robots Hacked . | . . . . . . . . . . . . . . . . Non-combat . | . . . . . . . . . . . . . . . . Combat . | . . . . . . . . . . . . . . . . Robot Hacks Applied . | . . . . . . . . . . . . . . . . Relay Couplers Released . | . . . . . . . . . . . . . . . . Fabnet Peak Effective % . | . . . . . . . . . . . . . . . . Robots Rewired . | . . . . . . . . . . . . . . . . Allies Hacked . | . . . . . . . . . . . . . . . . Hacks Repelled . | . . . . . . . . . . . . . . . . Allies | -11 -10 -9 -8 -7 -7 -7 -7 -7 -6 -6 -6 -6 -6 -5 -5 -------- Run | Scr Mat Mat Mat Fac Low Low Zio Dee Pro Fac Low Low Dat Pro Fac Total Allies 9 | . . . . 3 . . 6 . . . . . . . . Largest Group 6 | . . . . 2 . . 6 6 . . . . . . . Highest-Rated Group 168 | . . . . 20 . . 168 168 . . . . . . . Highest-Rated Ally 31 | . . . . 10 . . 31 31 . . . . . . . Total Orders 1 | . . . . . . . . . . 1 . . . . . EXPLORE 1 | . . . . . . . . . . 1 . . . . . Ally Attacks 69 | . . . . . . . . 69 . . . . . . . Total Damage 896 | . . . . . . . . 896 . . . . . . . Kills 3 | . . . . . . . . 3 . . . . . . . Allies Corrupted . | . . . . . . . . . . . . . . . . Allies Melted . | . . . . . . . . . . . . . . . . Intel | -11 -10 -9 -8 -7 -7 -7 -7 -7 -6 -6 -6 -6 -6 -5 -5 ------- Run | Scr Mat Mat Mat Fac Low Low Zio Dee Pro Fac Low Low Dat Pro Fac Robot Analysis Total 1 | . . . . 1 . . . . . . . . . . . Derelict Logs Recovered 8 | . . . . . 2 1 1 . 1 . 1 1 . 1 . Drone Launches 1 | . . . . . . . . . . 1 . . . . . Drone Recoveries 1 | . . . . . . . . . . 1 . . . . . Exploration | -11 -10 -9 -8 -7 -7 -7 -7 -7 -6 -6 -6 -6 -6 -5 -5 ------------- Run | Scr Mat Mat Mat Fac Low Low Zio Dee Pro Fac Low Low Dat Pro Fac Turns Passed 13536 | 79 1271 2944 2019 405 254 325 549 944 345 2608 329 94 148 587 635 Spaces Moved 12206 | 60 773 1609 1019 670 726 513 1508 1196 387 2042 501 169 176 679 178 Core 9 | 2 . . . . . . . . . 3 . . . . 4 Treads 1174 | . 386 101 532 46 . . . . . . . . . . 109 Legs 233 | . . . . . . . . . . 219 . . . . 14 Wheels 3371 | 58 387 1508 487 . . . . . . 928 . . . . 3 Hover 3800 | . . . . . . . . 948 387 892 501 169 176 679 48 Flight 3619 | . . . . 624 726 513 1508 248 . . . . . . . Fastest Speed 26 | 50 80 105 150 26 26 26 26 26 48 52 53 53 53 31 50 Average Speed 77 | 79 127 142 158 35 26 26 26 45 50 90 53 53 62 47 139 Slowest Speed 350 | 80 240 240 245 158 26 26 26 100 56 350 53 53 121 105 350 Overloaded Moves . | . . . . . . . . . . . . . . . . Propulsion Burnouts . | . . . . . . . . . . . . . . . . Robots Hopped . | . . . . . . . . . . . . . . . . Cave-ins Triggered . | . . . . . . . . . . . . . . . . Exploration Rate (%) 56 | 3 99 95 69 17 82 61 87 67 58 37 59 27 77 71 2 Regions Visited 15 Branch Regions 9 Pre-discovered Areas 3 | . . . . . . . 2 . . . . . 1 . . Known Exits Taken 13 | . . 1 1 1 1 1 1 1 1 1 1 1 1 1 . Unknown Exits Taken 2 | 1 1 . . . . . . . . . . . . . . Scrap Searched 17 | . . . . . 3 1 4 . 3 . 4 . . 2 . Spaces Dug 90 | . . 6 2 17 2 8 4 . . 42 1 . 2 6 . Terrain Destroyed 493 | . 22 91 22 17 2 16 4 117 76 83 1 . 28 6 8 Melee 84 | . . 6 2 17 2 2 4 . . 42 1 . 2 6 . Projectile 29 | . . . . . . . . 6 3 12 . . . . 8 AOE 380 | . 22 85 20 . . 14 . 111 73 29 . . 26 . . Terrain Rammed . | . . . . . . . . . . . . . . . . Walls Destroyed . | . . . . . . . . . . . . . . . . Machines Disabled . | . . . . . . . . . . . . . . . . Actions | -11 -10 -9 -8 -7 -7 -7 -7 -7 -6 -6 -6 -6 -6 -5 -5 --------- Run | Scr Mat Mat Mat Fac Low Low Zio Dee Pro Fac Low Low Dat Pro Fac Total 15001 | 77 939 1972 1233 811 780 698 1646 1543 516 2599 560 170 197 887 373 Wait 1439 | . 37 68 48 56 48 182 108 240 115 279 44 . . 162 52 Move 12191 | 59 772 1608 1018 669 725 512 1507 1195 386 2041 500 168 175 678 178 Hop . | . . . . . . . . . . . . . . . . Pick Up 132 | 6 22 31 17 9 . . 4 6 1 23 2 . 4 . 7 Fast Attach 126 | 7 7 11 9 6 . . 4 19 2 41 3 . . 2 15 Attach 68 | . 1 11 7 9 . . 1 2 1 15 2 . 2 6 11 Detach 49 | . . 3 2 5 . . 4 5 . 19 2 . . 5 4 Swap 123 | . 20 30 9 8 1 . 1 15 1 25 2 1 3 3 4 Drop 190 | . 19 41 19 25 . . 6 25 . 46 3 . 2 . 4 Fire 451 | 5 60 159 102 . . 2 . 29 8 22 . . 7 5 52 Melee 229 | . . 9 2 24 6 2 11 7 2 88 2 1 4 26 45 Ram 1 | . . 1 . . . . . . . . . . . . . Kick . | . . . . . . . . . . . . . . . . Crush 2 | . 1 . . . . . . . . . . . . . 1 Escape Stasis . | . . . . . . . . . . . . . . . . Rewire . | . . . . . . . . . . . . . . . . Trap . | . . . . . . . . . . . . . . . . Miscellaneous . | . . . . . . . . . . . . . . . . Route ------- -11/Scrapyard -10/Materials (discovered 4 exits: *Mat x3 / [*Min]) -9/Materials (discovered 4 exits: *Mat x3 / [*Min]) -8/Materials -7/Factory (discovered 4 exits: *Fac / Sto / *Low x2) -7/Lower Caves -7/Lower Caves -7/Zion (discovered 2 exits: *Dee / *Pro) -7/Deep Caves -6/Proximity Caves -6/Factory (discovered 5 exits: *Fac x3 / *Low x2) -6/Lower Caves -6/Lower Caves -6/Data Miner -5/Proximity Caves -5/Factory (discovered 3 exits: Fac / Ext x2) History --------- Turn | Location | Event 24 | -11/Scrapyard | Discovered new exit (range 16) 80 | -11/Scrapyard | Entered Materials 186 | -10/Materials | Discovered new exit (range 12) 309 | -10/Materials | Discovered new exit (range 16) 311 | -10/Materials | Build established: Mutant 747 | -10/Materials | Discovered new exit (range 4) 808 | -10/Materials | Discovered new exit (range 13) 1351 | -10/Materials | Entered another Materials area 1351 | -9/Materials | Evolved 2 slots: Propulsion x1, Utility x1 2341 | -9/Materials | Discovered new exit (range 3) 2512 | -9/Materials | Discovered new exit (range 11) 3241 | -9/Materials | Discovered new exit (range 7) 4026 | -9/Materials | Discovered new exit (range 16) 4151 | -9/Materials | First assault squad dispatched 4294 | -9/Materials | Identified exit to Materials 4295 | -9/Materials | Entered another Materials area 4295 | -8/Materials | Evolved 2 slots: Utility x2 4933 | -8/Materials | Build established: Scavenger-Mutant 5565 | -8/Materials | Discovered new exit (range 16) 5947 | -8/Materials | Identified exit to Factory 6314 | -8/Materials | Entered Factory 6314 | -7/Factory | Evolved 2 slots: Propulsion x1, Utility x1 6465 | -7/Factory | Discovered new exit (range 13) 6469 | -7/Factory | Identified exit to Factory 6655 | -7/Factory | Identified exit to Storage 6655 | -7/Factory | Identified exit to Lower Caves 6716 | -7/Factory | Build established: Hacker-Sprinter 6719 | -7/Factory | Entered Lower Caves 6723 | -7/Lower Caves | Learned 8 Factory zone layouts 6784 | -7/Lower Caves | Encountered a Warlord checkpoint 6885 | -7/Lower Caves | Discovered new exit (range 10) 6887 | -7/Lower Caves | Identified exit to Lower Caves 6954 | -7/Lower Caves | Learned Factory interactive machine intel 6973 | -7/Lower Caves | Entered another Lower Caves area 6974 | -7/Lower Caves | Learned Factory non-interactive machine intel 7019 | -7/Lower Caves | Encountered a Warlord checkpoint 7285 | -7/Lower Caves | Discovered new exit (range 13) 7288 | -7/Lower Caves | Identified exit to Zion 7298 | -7/Lower Caves | Entered Zion 7307 | -7/Zion | Discovered new exit (range 15) 7313 | -7/Zion | Identified exit to Proximity Caves 7392 | -7/Zion | Found CR-A16's Pointy Stick 7421 | -7/Zion | Gained Derelict followers 7448 | -7/Zion | Learned location of Warlord (-5) 7460 | -7/Zion | Gained Derelict followers 7652 | -7/Zion | Found Prototype Special Weapon 7652 | -7/Zion | Identified RU-N14's Throwing Claymores 7659 | -7/Zion | Found RU-N14's Throwing Claymores 7661 | -7/Zion | Found RU-N14's Throwing Claymores 7761 | -7/Zion | Discovered new exit (range 5) 7762 | -7/Zion | Saw the warning signs outside the Deep Caves entrance 7763 | -7/Zion | Identified exit to Deep Caves 7847 | -7/Zion | Entered Deep Caves 7847 | -7/Deep Caves | Accompanied by 6 allies 7957 | -7/Deep Caves | Build established: Sprinter 7996 | -7/Deep Caves | Attacked by Z-Imprinter 8011 | -7/Deep Caves | Found Prototype Protection 8011 | -7/Deep Caves | Identified Zio. Weapon Casing 8030 | -7/Deep Caves | Destroyed Z-Imprinter 8045 | -7/Deep Caves | Found Prototype Device 8045 | -7/Deep Caves | Identified Zio. Metafield Generator 8059 | -7/Deep Caves | Lost 3 parts (1p1n1u) 8078 | -7/Deep Caves | Found Zio. Weapon Casing 8278 | -7/Deep Caves | Z-Facility disabled 8298 | -7/Deep Caves | Found Zio. Weapon Casing 8350 | -7/Deep Caves | Build established: Scavenger-Mutant 8688 | -7/Deep Caves | Discovered new exit (range 9) 8698 | -7/Deep Caves | Identified exit to Proximity Caves 8791 | -7/Deep Caves | Entered Proximity Caves 9037 | -6/Proximity Caves | Spotted B-75 Beast 9098 | -6/Proximity Caves | Lost 5 parts (2n2u1w) 9110 | -6/Proximity Caves | Learned location of 2 exits from Factory 9136 | -6/Proximity Caves | Entered Factory 9136 | -6/Factory | Evolved 2 slots: Power x1, Utility x1 9137 | -6/Factory | Identified exit to Factory 9138 | -6/Factory | Identified exit to Lower Caves 9139 | -6/Factory | Loaded intel: 241 non-interactive machine locations 9140 | -6/Factory | Loaded intel: 52 interactive machine locations 9588 | -6/Factory | Core integrity fell below 50% 9620 | -6/Factory | Lost 7 parts (2p4n1u) 9634 | -6/Factory | Discovered exit to Factory (range 15) 10604 | -6/Factory | Lost 3 parts (2n1u) 11358 | -6/Factory | Repaired Broken Gravmag System 11706 | -6/Factory | Build established: Hacker-Mutant 11716 | -6/Factory | Discovered exit to Lower Caves (range 6) 11744 | -6/Factory | Entered Lower Caves 11747 | -6/Lower Caves | Learned 4 Factory zone layouts 11871 | -6/Lower Caves | Encountered a Warlord checkpoint 11977 | -6/Lower Caves | Discovered new exit (range 10) 11981 | -6/Lower Caves | Identified exit to Lower Caves 12073 | -6/Lower Caves | Entered another Lower Caves area 12151 | -6/Lower Caves | Learned Factory security intel 12163 | -6/Lower Caves | Discovered new exit (range 8) 12167 | -6/Lower Caves | Identified exit to Data Miner 12167 | -6/Lower Caves | Entered Data Miner 12167 | -6/Data Miner | Discovered new exit (range 6) 12171 | -6/Data Miner | Identified exit to Proximity Caves 12179 | -6/Data Miner | Met Data Miner 12188 | -6/Data Miner | Learned location of Section 7 (-2) 12188 | -6/Data Miner | Acquired the access code to Warlord's prototype stash 12197 | -6/Data Miner | Received God Mode back door access code from Data Miner 12242 | -6/Data Miner | Destroyed Data Miner 12253 | -6/Data Miner | Data Conduit disabled 12292 | -6/Data Miner | Found Prototype Hackware 12296 | -6/Data Miner | Found Prototype Hackware 12299 | -6/Data Miner | Found Prototype Hackware 12315 | -6/Data Miner | Entered Proximity Caves 12465 | -5/Proximity Caves | Received a Behemoth hack from an annoying Tinkerer 12742 | -5/Proximity Caves | Learned location of 2 exits from Factory 12743 | -5/Proximity Caves | Attracted the attention of an 0b10 outpost 12809 | -5/Proximity Caves | Lost 3 parts (2n1u) 12880 | -5/Proximity Caves | Discovered exit to Factory (range 10) 12902 | -5/Proximity Caves | Entered Factory 12902 | -5/Factory | Evolved 2 slots: Propulsion x1, Utility x1 12903 | -5/Factory | Identified exit to Extension 12904 | -5/Factory | Identified exit to Factory 12951 | -5/Factory | Lost 5 parts (1p2n1u1w) 13202 | -5/Factory | Search patrols dispatched 13333 | -5/Factory | Lost 3 parts (1p1u1w) 13459 | -5/Factory | Core integrity fell below 50% 13498 | -5/Factory | System corruption reached 10% 13505 | -5/Factory | Core integrity fell below 20% 13537 | -5/Factory | Destroyed by P-70 Sage with Tesla Rifle Last Messages --------------- 13508_ U-05 Engineer lays Concrete. 13509_ U-05 Engineer builds a Wall. 13510_ Rnf. Fission Core destroyed. 13510_ Acquired Imp. Treads. 13513_ Acquired 3 matter. 13514_ U-05 Engineer lays Concrete. 13514_ Imp. Treads destroyed. 13515_ U-05 Engineer lays Concrete. 13515_ Acquired Wheel. 13516_ System corrupted: Heat flow error (+220). 13516_ U-05 Engineer lays Concrete. 13517_ Acquired 70 matter. 13519_ Acquired Corrupted Carbon-fiber Leg. 13519_ Integrated Corrupted Carbon-fiber Leg (+4). 13520_ P-70 Sage resets P-70 Sage, system corruption cleaned. 13533_ Acquired Corrupted Flexi-carbon Leg. 13533_ Integrated Corrupted Flexi-carbon Leg (+3). 13534_ &WX2XYQEMSLYM>W3PD#2BSBSWWIX 13536_ Acquired Neutrino Core. 13537_ R-10 Processor collects Targeting Computer. Map ----- +----------------------------------------------------+ | ?????????????????????????????????????????????????? | | ?????????????????????????????????????????????????? | | ?????????????????????????????????????????????????? | | ?????????????????????????????????????????????????? | | ?????????????????????????????????????????????????? | | ?????????????????????????????????????????????????? | | ?????????????????????????????????????????????????? | | ?????????????????????##########??????????????????? | | ?????????????????????# """"" #??????????????????? | | ?????????????????????# ""T"" #??????????????????? | | ?????????????????????# #??????????????????? | | ?????????????????????# #??????????????????? | | ?????????????????????# #??????????????????? | | ?????????????????????# """ #??????????????????? | | ?????????????????????# """ #??????????????????? | | ?????????????##????### """ #??????????????????? | | ????????????## ##### # #??????????????????? | | ?############ # #####;####??????????????????? | | # # #??????????????????? | | # ! #; #??????????????????? | | # [% ; #??????????????????? | | ?????""""" #p #??????????????????? | | ?????"""" % #* = #??????????????????? | | ??????"""" % = # [%=###########??????????? | | ??????"""" % % # !#%%% % ! ]#??????????? | | ??? %!% %# !@=%# """" #??????????? | | ??? """""" # ! % p*!! %+!""F" #??????????? | | ??????"""" # =#u%!%%#%"" ! #??????????? | | ??????"""" ?###########R*%%%#!=[! ! #??????????? | | ???????""" ???????????#m%==|#!%[! ! #??????????? | | ???????? ????????????# %%#=[ #??????????? | | ???????###????????????#w %# !#??????????? | | ????????????????????? R% #########+#??????????? | | ??????????????????? #?????????#??????????? | | ?????????????????? #????????????????????? | | ???????????????? #????????????????????? | | ??????????????? #????????????????????? | | ??????????????######### #????????????????????? | | ??????????????????????# #????????????????????? | | ??????????????????????# #????????????????????? | | ??????????????????????# +????????????????????? | | ??????????????????????# #????????????????????? | | ??????????????????????# #????????????????????? | | ??????????????????????# ?????????????????????? | | ???????????????????????? ?????????????????????? | | ?????????????????????????????????????????????????? | | ?????????????????????????????????????????????????? | | ?????????????????????????????????????????????????? | | ?????????????????????????????????????????????????? | | ?????????????????????????????????????????????????? | +----------------------------------------------------+ Best States ------------- Heat Dissipation 77 Energy Generation 49 Energy Capacity 940 Matter Stores 300 Matter Capacity 300 Sight Range 22 Robot Scan Range 15 Terrain Scan Range 20 Terrain Scan Density 110 Base Temperature (-) 100 Armor Coverage 450 Resistance: EM 25 Propulsion Shielding 33 Weapon Shielding 100 Evasion (%) 64 Target Analysis 6 Recoil Reduction 3 Salvage Targeting 4 Offensive Hacking 20 Defensive Hacking 20 Item Schematics ----------------- Hcp. Storage Unit | -9/Materials | Hacked Imp. Thermal Generator | -7/Zion | Archive Component Analysis Suite | -7/Zion | Archive Thermal Shield | -7/Zion | Archive Remote Datajack | -7/Zion | Archive Adv. Melee Analysis Suite | -7/Zion | Archive Adv. Terrain Scan Processor | -7/Zion | Archive Plasma Rifle | -7/Zion | Archive Weapon Cycler | -7/Zion | Archive Imp. Shock Absorption System | -7/Zion | Archive Hvy. Phase Cannon | -7/Zion | Archive Xenon Bombardment Thruster | -7/Zion | Archive Mak. Terrain Scan Processor | -7/Zion | Archive Enh. Optical Array | -7/Zion | Archive System Guard | -7/Zion | Archive Imp. Field Recycling Unit | -7/Zion | Archive Gravmag System | -6/Factory | Scanalyzed Combat Drone Bay | -6/Data Miner | Free Lgt. Regenerative Plating | -6/Data Miner | Free Cld. Gravmag System | -6/Data Miner | Free Prc. Matter Filter | -6/Data Miner | Free Kinetic Spear | -6/Data Miner | Free Imp. Heavy Treads | -6/Data Miner | Free Imp. Cloaking Device | -6/Data Miner | Free Adv. Datajack | -6/Data Miner | Free Imp. Linear Gravjet | -6/Data Miner | Free Impulse Thruster Array | -6/Data Miner | Free Adv. Cryofiber Web | -6/Data Miner | Free Adv. Weapon Cycler | -6/Data Miner | Free Robot Schematics ------------------ R-06 Scavenger | -7/Zion | Archive T-07 Excavator | -7/Zion | Archive H-77 Assassin | -7/Zion | Archive S-27 Virus | -6/Data Miner | Free G-50 Soldier | -6/Data Miner | Free L-41 Fighter | -6/Data Miner | Free X-67 Chaingunner | -6/Data Miner | Free B-60 Warrior | -6/Data Miner | Free R-10 Processor | -6/Data Miner | Free Fabricated ------------ Nothing Alien Tech Used ----------------- None Achievements -------------- None Challenges ------------ None Game ------ Seed DisruptionAntimatterBox Manual? 0 Play Time 04:09:44 Cumulative 205.3 hours Start 2022.04.14 @ 09:13:31 End 2022.04.14 @ 14:23:35 Sessions 1 Manual Loads 0 Difficulty Rogue Special Mode None Game No. 76 Rogue 76 Adventurer 0 Explorer 0 Win Type - Total 2 Types 1/0/1/0/0/0/0/0/0 Lore% 60 Gallery% 71 Achievement% 54 Wizard Run 0 Options --------- ASCII 1 Keyboard 1 Movement Numpad Keybinds 0 Fullscreen 1 Font 36/Smallcaps Map View 76x50 Tactical HUD 1 Map Filters NONE Filters NONE Steam 1 RUN: afa76c80-b27f-4eb8-be8d-1a3777017061